[Event "Late-Titled-Tuesday-Blitz-February-13-2024"]
[Site "Chess.com"]
[Date "2024.02.13"]
[Round "7"]
[White "KorolDimitriy75"]
[Black "jinxy2009"]
[Result "1-0"]
[WhiteElo "2427"]
[BlackElo "2237"]
[TimeControl "180+1"]
[EndTime "15:17:35 PST"]
[Termination "KorolDimitriy75 won by resignation"]

1. d4 {[%clk 0:03:00.9]} 1... Nf6 {[%clk 0:02:57.4]} 2. c4 {[%clk 0:03:01.4]}
2... e6 {[%clk 0:02:56.6]} 3. Nc3 {[%clk 0:03:02]} 3... d5 {[%clk 0:02:57.5]} 4.
Bg5 {[%clk 0:03:00.8]} 4... Be7 {[%clk 0:02:57.1]} 5. cxd5 {[%clk 0:03:00.7]}
5... exd5 {[%clk 0:02:57]} 6. e3 {[%clk 0:03:00.9]} 6... c6 {[%clk 0:02:56.4]}
7. Bd3 {[%clk 0:03:01.2]} 7... O-O {[%clk 0:02:55.3]} 8. Qc2 {[%clk 0:03:01]}
8... h6 {[%clk 0:02:48.3]} 9. Bh4 {[%clk 0:03:01.3]} 9... Ne8 {[%clk 0:02:45.8]}
10. Bg3 {[%clk 0:03:00.2]} 10... Nd6 {[%clk 0:02:41.6]} 11. Nge2 {[%clk
0:02:59.6]} 11... Re8 {[%clk 0:02:41.8]} 12. O-O {[%clk 0:02:59.2]} 12... Bf8
{[%clk 0:02:42.2]} 13. h3 {[%clk 0:02:45]} 13... Nd7 {[%clk 0:02:33.1]} 14. Qd2
{[%clk 0:02:37.9]} 14... Nf6 {[%clk 0:02:32.1]} 15. f3 {[%clk 0:02:37.7]} 15...
Bf5 {[%clk 0:02:14.6]} 16. Bf2 {[%clk 0:02:23.4]} 16... Bxd3 {[%clk 0:02:13.5]}
17. Qxd3 {[%clk 0:02:24.3]} 17... b5 {[%clk 0:02:05.6]} 18. Ng3 {[%clk
0:02:05.4]} 18... a5 {[%clk 0:01:54.2]} 19. b3 {[%clk 0:02:00.2]} 19... a4
{[%clk 0:01:43.3]} 20. Rac1 {[%clk 0:01:14.2]} 20... axb3 {[%clk 0:01:17.9]} 21.
axb3 {[%clk 0:01:15.1]} 21... Ra3 {[%clk 0:01:17.9]} 22. Qb1 {[%clk 0:01:15.2]}
22... Qa5 {[%clk 0:01:07.2]} 23. Nce2 {[%clk 0:00:55.8]} 23... h5 {[%clk
0:00:21.8]} 24. Rxc6 {[%clk 0:00:42.1]} 24... h4 {[%clk 0:00:21.2]} 25. Nf5
{[%clk 0:00:42.4]} 25... Nxf5 {[%clk 0:00:20.1]} 26. Qxf5 {[%clk 0:00:43.3]}
26... Rxb3 {[%clk 0:00:20.1]} 27. Nf4 {[%clk 0:00:37.7]} 27... Qd2 {[%clk
0:00:13.6]} 28. Nxd5 {[%clk 0:00:26.4]} 28... Nxd5 {[%clk 0:00:12.8]} 29. Qxd5
{[%clk 0:00:27.3]} 29... Rbxe3 {[%clk 0:00:12.1]} 30. Rc7 {[%clk 0:00:20.9]}
30... R3e7 {[%clk 0:00:10.7]} 31. Rxe7 {[%clk 0:00:17.9]} 31... Bxe7 {[%clk
0:00:11.1]} 32. Qxb5 {[%clk 0:00:18.1]} 32... Bf6 {[%clk 0:00:10.5]} 33. Qxe8+
{[%clk 0:00:17.9]} 1-0

[Event "Late-Titled-Tuesday-Blitz-February-13-2024"]
[Site "Chess.com"]
[Date "2024.02.13"]
[Round "7"]
[White "Bala-Afiada"]
[Black "protectiago"]
[Result "1-0"]
[WhiteElo "2037"]
[BlackElo "2088"]
[TimeControl "180+1"]
[EndTime "15:17:37 PST"]
[Termination "Bala-Afiada won on time"]

1. d4 {[%clk 0:03:00.9]} 1... Nf6 {[%clk 0:02:49]} 2. c4 {[%clk 0:02:59.5]} 2...
g6 {[%clk 0:02:44.5]} 3. Nc3 {[%clk 0:02:59.1]} 3... d5 {[%clk 0:02:44.2]} 4. e3
{[%clk 0:02:54.5]} 4... Bg7 {[%clk 0:02:41.7]} 5. Nf3 {[%clk 0:02:54.3]} 5...
O-O {[%clk 0:02:41.6]} 6. Bd3 {[%clk 0:02:53.9]} 6... dxc4 {[%clk 0:02:41.7]} 7.
Bxc4 {[%clk 0:02:54]} 7... c5 {[%clk 0:02:42.5]} 8. O-O {[%clk 0:02:53]} 8...
cxd4 {[%clk 0:02:37.7]} 9. Nxd4 {[%clk 0:02:52.2]} 9... e5 {[%clk 0:02:37.6]}
10. Ndb5 {[%clk 0:02:51]} 10... Qa5 {[%clk 0:02:12]} 11. Qa4 {[%clk 0:02:42.7]}
11... Qxa4 {[%clk 0:02:08.8]} 12. Nxa4 {[%clk 0:02:42.9]} 12... Na6 {[%clk
0:02:07.3]} 13. Bd2 {[%clk 0:02:20.7]} 13... Bd7 {[%clk 0:02:06.6]} 14. Nac3
{[%clk 0:01:57.6]} 14... Rfd8 {[%clk 0:01:48.9]} 15. Rfd1 {[%clk 0:01:55.1]}
15... Bg4 {[%clk 0:01:47.9]} 16. f3 {[%clk 0:01:51.1]} 16... Rac8 {[%clk
0:01:45.6]} 17. Bb3 {[%clk 0:01:20.9]} 17... Bd7 {[%clk 0:01:36.4]} 18. Nd6
{[%clk 0:01:16.3]} 18... Rc7 {[%clk 0:01:15]} 19. Nxf7 {[%clk 0:01:12.4]} 19...
Rdc8 {[%clk 0:01:14.9]} 20. Nd6+ {[%clk 0:01:08.4]} 20... Kh8 {[%clk 0:01:10.6]}
21. Nxc8 {[%clk 0:01:08.5]} 21... Rxc8 {[%clk 0:01:10.1]} 22. Rac1 {[%clk
0:00:51.8]} 22... Nc5 {[%clk 0:01:08.2]} 23. Bc2 {[%clk 0:00:51.7]} 23... Rf8
{[%clk 0:01:04.9]} 24. b4 {[%clk 0:00:44.9]} 24... Ne6 {[%clk 0:01:02.5]} 25.
Bb3 {[%clk 0:00:42]} 25... Ng5 {[%clk 0:00:54.7]} 26. Nd5 {[%clk 0:00:40.4]}
26... Bc6 {[%clk 0:00:48.7]} 27. Nxf6 {[%clk 0:00:37.9]} 27... Bxf6 {[%clk
0:00:48.4]} 28. e4 {[%clk 0:00:25.7]} 28... a6 {[%clk 0:00:43.3]} 29. Be3 {[%clk
0:00:23.2]} 29... Be7 {[%clk 0:00:30.7]} 30. Bc5 {[%clk 0:00:20.2]} 1-0

[Event "Late-Titled-Tuesday-Blitz-February-13-2024"]
[Site "Chess.com"]
[Date "2024.02.13"]
[Round "7"]
[White "yuriydovzik"]
[Black "FM_Kappeler"]
[Result "0-1"]
[WhiteElo "2103"]
[BlackElo "2260"]
[TimeControl "180+1"]
[EndTime "15:17:38 PST"]
[Termination "FM_Kappeler won on time"]

1. e4 {[%clk 0:03:00.9]} 1... c5 {[%clk 0:02:59.5]} 2. Nf3 {[%clk 0:02:57.2]}
2... Nc6 {[%clk 0:02:59.5]} 3. d3 {[%clk 0:02:56.7]} 3... e6 {[%clk 0:02:58.9]}
4. g3 {[%clk 0:02:56]} 4... d5 {[%clk 0:02:58.4]} 5. Nbd2 {[%clk 0:02:48.9]}
5... Nge7 {[%clk 0:02:58.2]} 6. Bg2 {[%clk 0:02:48.1]} 6... g6 {[%clk
0:02:58.4]} 7. O-O {[%clk 0:02:47.3]} 7... Bg7 {[%clk 0:02:58.5]} 8. Re1 {[%clk
0:02:43.3]} 8... b6 {[%clk 0:02:57.6]} 9. h4 {[%clk 0:02:38.6]} 9... h6 {[%clk
0:02:57]} 10. exd5 {[%clk 0:02:25.1]} 10... Nxd5 {[%clk 0:02:51.6]} 11. Nc4
{[%clk 0:02:14.5]} 11... Bb7 {[%clk 0:02:50.9]} 12. Bd2 {[%clk 0:02:06.4]} 12...
Qc7 {[%clk 0:02:48.2]} 13. a4 {[%clk 0:01:58.2]} 13... O-O {[%clk 0:02:32.4]}
14. Qc1 {[%clk 0:01:51.1]} 14... Kh7 {[%clk 0:02:31.4]} 15. h5 {[%clk
0:01:46.3]} 15... g5 {[%clk 0:02:27.7]} 16. Bxg5 {[%clk 0:01:30.6]} 16... hxg5
{[%clk 0:02:26.4]} 17. Nxg5+ {[%clk 0:01:30.2]} 17... Kh8 {[%clk 0:02:15.8]} 18.
Ne4 {[%clk 0:01:13.5]} 18... Rg8 {[%clk 0:01:59]} 19. h6 {[%clk 0:01:11.7]}
19... Bf8 {[%clk 0:01:58.3]} 20. Ng5 {[%clk 0:01:00.6]} 20... Rg6 {[%clk
0:01:47.2]} 21. Be4 {[%clk 0:00:54.1]} 21... Rxh6 {[%clk 0:01:26.3]} 22. Kg2
{[%clk 0:00:48.4]} 22... Nf6 {[%clk 0:00:51.9]} 23. Rh1 {[%clk 0:00:39.7]} 23...
Nxe4 {[%clk 0:00:47.1]} 24. Nxe4 {[%clk 0:00:38.5]} 24... Rxh1 {[%clk
0:00:26.8]} 25. Qxh1+ {[%clk 0:00:36.7]} 25... Kg8 {[%clk 0:00:27]} 26. Nf6+
{[%clk 0:00:31]} 26... Kg7 {[%clk 0:00:25.6]} 27. Qh4 {[%clk 0:00:29.1]} 27...
Ne5+ {[%clk 0:00:21]} 28. Kh3 {[%clk 0:00:06.4]} 28... Ng6 {[%clk 0:00:21]} 29.
Nh5+ {[%clk 0:00:04.8]} 29... Kg8 {[%clk 0:00:19.3]} 30. Nf6+ {[%clk 0:00:02.9]}
30... Kg7 {[%clk 0:00:19.2]} 31. Nh5+ {[%clk 0:00:02.8]} 31... Kh6 {[%clk
0:00:19.2]} 0-1

[Event "Late-Titled-Tuesday-Blitz-February-13-2024"]
[Site "Chess.com"]
[Date "2024.02.13"]
[Round "7"]
[White "Grischuk"]
[Black "Durarbayli"]
[Result "1-0"]
[WhiteElo "3099"]
[BlackElo "2938"]
[TimeControl "180+1"]
[EndTime "15:17:40 PST"]
[Termination "Grischuk won on time"]

1. d4 {[%clk 0:03:00.9]} 1... d5 {[%clk 0:02:59.2]} 2. c4 {[%clk 0:03:01.1]}
2... c6 {[%clk 0:02:59.8]} 3. Nf3 {[%clk 0:03:00.8]} 3... Nf6 {[%clk 0:03:00.4]}
4. Nc3 {[%clk 0:03:00.7]} 4... e6 {[%clk 0:03:00.5]} 5. Bg5 {[%clk 0:03:00.4]}
5... dxc4 {[%clk 0:02:49.4]} 6. e4 {[%clk 0:03:00.1]} 6... h6 {[%clk 0:02:49.6]}
7. Bxf6 {[%clk 0:02:56.9]} 7... Qxf6 {[%clk 0:02:47.9]} 8. Bxc4 {[%clk
0:02:56.8]} 8... Nd7 {[%clk 0:02:44.5]} 9. e5 {[%clk 0:02:53.2]} 9... Qd8 {[%clk
0:02:40]} 10. O-O {[%clk 0:02:52.2]} 10... Be7 {[%clk 0:02:40.1]} 11. Qe2 {[%clk
0:02:47.8]} 11... b5 {[%clk 0:02:36.2]} 12. Bd3 {[%clk 0:02:43.3]} 12... Bb7
{[%clk 0:02:36.4]} 13. Rad1 {[%clk 0:02:08.3]} 13... a6 {[%clk 0:02:27.8]} 14.
Be4 {[%clk 0:01:55.4]} 14... Qb6 {[%clk 0:02:24.5]} 15. Rfe1 {[%clk 0:01:55.1]}
15... Rd8 {[%clk 0:02:09.4]} 16. h4 {[%clk 0:01:35.5]} 16... g5 {[%clk 0:02:05]}
17. Nh2 {[%clk 0:01:07.9]} 17... gxh4 {[%clk 0:01:52.2]} 18. Qh5 {[%clk
0:01:07.2]} 18... b4 {[%clk 0:01:40]} 19. Ne2 {[%clk 0:01:03]} 19... c5 {[%clk
0:01:30.1]} 20. Bxb7 {[%clk 0:01:01]} 20... Qxb7 {[%clk 0:01:27.8]} 21. Nf4
{[%clk 0:00:59.5]} 21... Rg8 {[%clk 0:01:07.2]} 22. Nf3 {[%clk 0:00:59.4]} 22...
h3 {[%clk 0:00:56.2]} 23. d5 {[%clk 0:00:51.4]} 23... Nf8 {[%clk 0:00:19.1]} 24.
Qxh3 {[%clk 0:00:50]} 24... exd5 {[%clk 0:00:17.4]} 25. e6 {[%clk 0:00:50.9]}
25... Rg7 {[%clk 0:00:09.3]} 26. Ne5 {[%clk 0:00:41.7]} 26... Rd6 {[%clk
0:00:04.1]} 27. Nxf7 {[%clk 0:00:41.3]} 27... Rxe6 {[%clk 0:00:03]} 28. Nxe6
{[%clk 0:00:29.4]} 28... Rxf7 {[%clk 0:00:03.1]} 29. Nxf8 {[%clk 0:00:26.3]}
29... Kxf8 {[%clk 0:00:02.9]} 30. Qxh6+ {[%clk 0:00:26.4]} 30... Kg8 {[%clk
0:00:02.9]} 31. Rd3 {[%clk 0:00:21.4]} 31... Bf8 {[%clk 0:00:01.5]} 32. Rg3+
{[%clk 0:00:19]} 1-0

[Event "Late-Titled-Tuesday-Blitz-February-13-2024"]
[Site "Chess.com"]
[Date "2024.02.13"]
[Round "7"]
[White "ChessQueen"]
[Black "mishanick"]
[Result "0-1"]
[WhiteElo "2701"]
[BlackElo "2966"]
[TimeControl "180+1"]
[EndTime "15:17:41 PST"]
[Termination "mishanick won by checkmate"]

1. Nf3 {[%clk 0:02:59]} 1... d5 {[%clk 0:02:59.7]} 2. g3 {[%clk 0:02:59.1]} 2...
g6 {[%clk 0:02:59.9]} 3. Bg2 {[%clk 0:02:59.4]} 3... Bg7 {[%clk 0:03:00.7]} 4.
d4 {[%clk 0:02:59.7]} 4... c6 {[%clk 0:03:00.7]} 5. O-O {[%clk 0:02:59.7]} 5...
Nf6 {[%clk 0:03:01.4]} 6. c3 {[%clk 0:02:59.5]} 6... O-O {[%clk 0:03:01.6]} 7.
a4 {[%clk 0:02:59.8]} 7... a5 {[%clk 0:02:59.8]} 8. Nbd2 {[%clk 0:02:59.9]} 8...
Nbd7 {[%clk 0:02:59.3]} 9. Re1 {[%clk 0:02:58.9]} 9... c5 {[%clk 0:02:59.6]} 10.
b3 {[%clk 0:02:48]} 10... b6 {[%clk 0:02:58.8]} 11. e3 {[%clk 0:02:45.2]} 11...
Bb7 {[%clk 0:02:57.6]} 12. Bb2 {[%clk 0:02:45.5]} 12... Qc7 {[%clk 0:02:54]} 13.
Rc1 {[%clk 0:02:45.1]} 13... Rfd8 {[%clk 0:02:53.7]} 14. Nb1 {[%clk 0:02:43.9]}
14... Rac8 {[%clk 0:02:52.3]} 15. Na3 {[%clk 0:02:44.2]} 15... Qb8 {[%clk
0:02:52.9]} 16. Qe2 {[%clk 0:02:42.1]} 16... Ne4 {[%clk 0:02:50.8]} 17. Nd2
{[%clk 0:02:35.3]} 17... Ndf6 {[%clk 0:02:47.2]} 18. Nb5 {[%clk 0:02:26.9]}
18... Bc6 {[%clk 0:02:41]} 19. c4 {[%clk 0:02:24]} 19... dxc4 {[%clk 0:02:15.9]}
20. Nxc4 {[%clk 0:02:13.4]} 20... Qb7 {[%clk 0:02:03.8]} 21. f3 {[%clk
0:02:01.3]} 21... Nd6 {[%clk 0:01:49.9]} 22. Ncxd6 {[%clk 0:01:34.1]} 22... exd6
{[%clk 0:01:50.8]} 23. e4 {[%clk 0:01:33.1]} 23... Ne8 {[%clk 0:01:38.3]} 24.
Rcd1 {[%clk 0:01:03.4]} 24... Bxb5 {[%clk 0:01:31.7]} 25. Qxb5 {[%clk
0:01:01.7]} 25... cxd4 {[%clk 0:01:30.9]} 26. Bxd4 {[%clk 0:01:01.4]} 26...
Bxd4+ {[%clk 0:01:27.4]} 27. Rxd4 {[%clk 0:01:02.3]} 27... Nc7 {[%clk
0:01:22.4]} 28. Qd3 {[%clk 0:00:54.8]} 28... Ne6 {[%clk 0:01:22.6]} 29. Rxd6
{[%clk 0:00:52]} 29... Rxd6 {[%clk 0:01:23.5]} 30. Qxd6 {[%clk 0:00:52.1]} 30...
Rd8 {[%clk 0:01:24.2]} 31. Qe5 {[%clk 0:00:49.3]} 31... Qe7 {[%clk 0:01:21]} 32.
h4 {[%clk 0:00:34.7]} 32... Qb4 {[%clk 0:01:13.9]} 33. Rc1 {[%clk 0:00:28.4]}
33... h5 {[%clk 0:00:56.3]} 34. Qc3 {[%clk 0:00:12.8]} 34... Rd1+ {[%clk
0:00:54.6]} 35. Kh2 {[%clk 0:00:11.1]} 35... Rxc1 {[%clk 0:00:54.4]} 36. Qxc1
{[%clk 0:00:12]} 36... Qxb3 {[%clk 0:00:54.7]} 37. Qc8+ {[%clk 0:00:11.9]} 37...
Kg7 {[%clk 0:00:54.5]} 38. Qd7 {[%clk 0:00:11]} 38... Qb2 {[%clk 0:00:40.3]} 39.
f4 {[%clk 0:00:11]} 39... Nd4 {[%clk 0:00:37.9]} 40. Kh3 {[%clk 0:00:07.1]}
40... Qc3 {[%clk 0:00:37.3]} 41. Qd5 {[%clk 0:00:06.4]} 41... Ne2 {[%clk
0:00:34.2]} 42. f5 {[%clk 0:00:04.8]} 42... Qxg3# {[%clk 0:00:33.7]} 0-1

[Event "Late-Titled-Tuesday-Blitz-February-13-2024"]
[Site "Chess.com"]
[Date "2024.02.13"]
[Round "7"]
[White "Korchmar_Vasiliy"]
[Black "ChristopherYoo"]
[Result "1-0"]
[WhiteElo "2775"]
[BlackElo "2961"]
[TimeControl "180+1"]
[EndTime "15:17:51 PST"]
[Termination "Korchmar_Vasiliy won by resignation"]

1. e4 {[%clk 0:03:00.9]} 1... c6 {[%clk 0:02:59]} 2. d4 {[%clk 0:03:00.8]} 2...
d5 {[%clk 0:02:59.2]} 3. exd5 {[%clk 0:03:01.3]} 3... cxd5 {[%clk 0:03:00.1]} 4.
Bd3 {[%clk 0:03:01.4]} 4... Nc6 {[%clk 0:03:00]} 5. c3 {[%clk 0:03:02]} 5... Qc7
{[%clk 0:03:00.1]} 6. h3 {[%clk 0:03:01.2]} 6... Nf6 {[%clk 0:02:59.5]} 7. Nf3
{[%clk 0:03:00.7]} 7... g6 {[%clk 0:03:00]} 8. O-O {[%clk 0:02:59.6]} 8... Bg7
{[%clk 0:03:00.4]} 9. Bg5 {[%clk 0:02:45.8]} 9... h6 {[%clk 0:02:55.7]} 10. Be3
{[%clk 0:02:40.7]} 10... O-O {[%clk 0:02:49.6]} 11. Nbd2 {[%clk 0:02:37.2]}
11... Nh5 {[%clk 0:02:46.5]} 12. Re1 {[%clk 0:02:28.4]} 12... Nf4 {[%clk
0:02:46.4]} 13. Bf1 {[%clk 0:02:15.4]} 13... Bf5 {[%clk 0:02:44.5]} 14. Nb3
{[%clk 0:02:08.2]} 14... g5 {[%clk 0:02:29.9]} 15. Qd2 {[%clk 0:02:07.9]} 15...
Ng6 {[%clk 0:02:27.6]} 16. Bd3 {[%clk 0:01:56.1]} 16... Bxd3 {[%clk 0:02:26.5]}
17. Qxd3 {[%clk 0:01:57]} 17... e6 {[%clk 0:02:26.7]} 18. a4 {[%clk 0:01:51.9]}
18... Nce7 {[%clk 0:02:25.1]} 19. a5 {[%clk 0:01:49.1]} 19... Nf5 {[%clk
0:02:25.4]} 20. Nc5 {[%clk 0:01:40]} 20... Nd6 {[%clk 0:02:10.3]} 21. Nxe6
{[%clk 0:01:29.9]} 21... fxe6 {[%clk 0:02:08.3]} 22. Qxg6 {[%clk 0:01:30.2]}
22... Qf7 {[%clk 0:02:08.3]} 23. Qxf7+ {[%clk 0:01:29.3]} 23... Kxf7 {[%clk
0:02:09.2]} 24. a6 {[%clk 0:01:19.7]} 24... b5 {[%clk 0:02:06.2]} 25. Ne5+
{[%clk 0:01:13.9]} 25... Bxe5 {[%clk 0:01:54.5]} 26. dxe5 {[%clk 0:01:14.8]}
26... Nc4 {[%clk 0:01:55]} 27. Bd4 {[%clk 0:01:13.3]} 27... Nxb2 {[%clk
0:01:54.4]} 28. Reb1 {[%clk 0:01:11.7]} 28... Nc4 {[%clk 0:01:49.6]} 29. Rxb5
{[%clk 0:01:11.7]} 29... Kg6 {[%clk 0:01:43.6]} 30. Rb7 {[%clk 0:01:09.6]} 30...
Rf7 {[%clk 0:01:41.7]} 31. Rab1 {[%clk 0:01:06.5]} 31... Na5 {[%clk 0:01:38.2]}
32. Rxf7 {[%clk 0:00:55.4]} 32... Kxf7 {[%clk 0:01:39.1]} 33. Rb5 {[%clk
0:00:51.1]} 33... Nc6 {[%clk 0:01:39.5]} 34. Rb7+ {[%clk 0:00:50]} 34... Kg6
{[%clk 0:01:39.4]} 35. g4 {[%clk 0:00:45.8]} 35... Rb8 {[%clk 0:01:31.3]} 36.
Rc7 {[%clk 0:00:40.8]} 36... Rb1+ {[%clk 0:01:24.9]} 37. Kg2 {[%clk 0:00:40.5]}
37... Nxd4 {[%clk 0:01:11.1]} 38. cxd4 {[%clk 0:00:41.4]} 38... Ra1 {[%clk
0:00:56.2]} 39. Rxa7 {[%clk 0:00:41.5]} 39... Ra4 {[%clk 0:00:56.7]} 40. Ra8
{[%clk 0:00:38.9]} 40... Kg7 {[%clk 0:00:56.2]} 41. a7 {[%clk 0:00:37.2]} 41...
Ra1 {[%clk 0:00:51.5]} 42. Kf3 {[%clk 0:00:37]} 42... Ra2 {[%clk 0:00:50.1]} 43.
Ke3 {[%clk 0:00:37.1]} 43... Ra3+ {[%clk 0:00:47.9]} 44. Kd2 {[%clk 0:00:37.4]}
44... Ra1 {[%clk 0:00:47.6]} 45. Kc3 {[%clk 0:00:37.6]} 45... Ra4 {[%clk
0:00:35.8]} 46. Kb3 {[%clk 0:00:37.6]} 46... Ra1 {[%clk 0:00:35.7]} 47. Kb4
{[%clk 0:00:38.1]} 47... Ra6 {[%clk 0:00:35.2]} 48. Kb5 {[%clk 0:00:35.9]} 48...
Ra1 {[%clk 0:00:34.5]} 49. Kc5 {[%clk 0:00:35.7]} 49... Ra2 {[%clk 0:00:33.3]}
50. Kd6 {[%clk 0:00:34.9]} 50... Ra6+ {[%clk 0:00:33.9]} 51. Ke7 {[%clk
0:00:33.2]} 51... Kh7 {[%clk 0:00:25]} 52. Kf6 {[%clk 0:00:32.7]} 1-0

[Event "Late-Titled-Tuesday-Blitz-February-13-2024"]
[Site "Chess.com"]
[Date "2024.02.13"]
[Round "7"]
[White "ProfessorChess101"]
[Black "DonkyDonkyDonkey"]
[Result "0-1"]
[WhiteElo "2790"]
[BlackElo "2960"]
[TimeControl "180+1"]
[EndTime "15:17:51 PST"]
[Termination "DonkyDonkyDonkey won by resignation"]

1. d4 {[%clk 0:02:59.8]} 1... Nf6 {[%clk 0:02:59.7]} 2. c4 {[%clk 0:02:59.4]}
2... e6 {[%clk 0:02:59.7]} 3. Nc3 {[%clk 0:02:59.4]} 3... Bb4 {[%clk 0:02:59]}
4. e3 {[%clk 0:02:58.7]} 4... O-O {[%clk 0:02:59.1]} 5. Nf3 {[%clk 0:02:58.8]}
5... d5 {[%clk 0:02:59.6]} 6. Bd2 {[%clk 0:02:55.2]} 6... c5 {[%clk 0:02:59.2]}
7. a3 {[%clk 0:02:52.4]} 7... cxd4 {[%clk 0:02:58.8]} 8. axb4 {[%clk 0:02:51.6]}
8... dxc3 {[%clk 0:02:58.4]} 9. Bxc3 {[%clk 0:02:52.5]} 9... Ne4 {[%clk
0:02:56.3]} 10. Bd3 {[%clk 0:02:24.3]} 10... Nxc3 {[%clk 0:02:53.2]} 11. bxc3
{[%clk 0:02:25.2]} 11... Qf6 {[%clk 0:02:52.8]} 12. Qb3 {[%clk 0:02:11.2]} 12...
Nc6 {[%clk 0:02:47.3]} 13. O-O {[%clk 0:02:07.4]} 13... dxc4 {[%clk 0:02:44.5]}
14. Qxc4 {[%clk 0:02:07.1]} 14... a6 {[%clk 0:02:37.7]} 15. Qe4 {[%clk
0:01:48.4]} 15... g6 {[%clk 0:02:37.6]} 16. b5 {[%clk 0:01:48.3]} 16... Ne7
{[%clk 0:02:22.8]} 17. bxa6 {[%clk 0:01:44.8]} 17... Nd5 {[%clk 0:02:22.9]} 18.
axb7 {[%clk 0:01:24.2]} 18... Bxb7 {[%clk 0:02:23.8]} 19. Qd4 {[%clk 0:01:12.4]}
19... Qe7 {[%clk 0:02:19]} 20. Rxa8 {[%clk 0:01:11.5]} 20... Rxa8 {[%clk
0:02:18.7]} 21. c4 {[%clk 0:01:04.6]} 21... Nb4 {[%clk 0:02:18.7]} 22. Be4
{[%clk 0:00:48.4]} 22... Rd8 {[%clk 0:02:04.2]} 23. Qe5 {[%clk 0:00:48.5]} 23...
f6 {[%clk 0:02:02.7]} 24. Qf4 {[%clk 0:00:47.8]} 24... g5 {[%clk 0:01:55.8]} 25.
Qg4 {[%clk 0:00:48.2]} 25... h5 {[%clk 0:01:54.5]} 26. Qxh5 {[%clk 0:00:31.9]}
26... Bxe4 {[%clk 0:01:54.6]} 27. Nd4 {[%clk 0:00:29]} 27... Nc6 {[%clk
0:01:38.5]} 28. Qg4 {[%clk 0:00:21.5]} 28... f5 {[%clk 0:01:32.8]} 29. Qh5
{[%clk 0:00:19.3]} 29... Nxd4 {[%clk 0:01:25.3]} 30. exd4 {[%clk 0:00:20.2]}
30... Qf6 {[%clk 0:01:25.2]} 31. Rd1 {[%clk 0:00:17.6]} 31... g4 {[%clk
0:01:20.3]} 32. h3 {[%clk 0:00:13.2]} 32... gxh3 {[%clk 0:01:10.1]} 33. f3
{[%clk 0:00:13.4]} 33... Bb7 {[%clk 0:01:04.8]} 34. gxh3 {[%clk 0:00:07.5]}
34... Rxd4 {[%clk 0:01:01.1]} 35. Rb1 {[%clk 0:00:05.6]} 35... Qg7+ {[%clk
0:00:56.1]} 36. Kh1 {[%clk 0:00:05]} 36... Rh4 {[%clk 0:00:35.3]} 37. Qe8+
{[%clk 0:00:02.7]} 37... Kh7 {[%clk 0:00:35.7]} 38. Kh2 {[%clk 0:00:01.3]} 38...
Bxf3 {[%clk 0:00:26.6]} 39. Rg1 {[%clk 0:00:01.8]} 39... Qe5+ {[%clk 0:00:26.9]}
40. Rg3 {[%clk 0:00:02.5]} 40... Qe2+ {[%clk 0:00:27.3]} 41. Kg1 {[%clk
0:00:03.1]} 41... Qe1+ {[%clk 0:00:27.7]} 42. Kh2 {[%clk 0:00:03.6]} 42... Qf2+
{[%clk 0:00:28.2]} 0-1

[Event "Late-Titled-Tuesday-Blitz-February-13-2024"]
[Site "Chess.com"]
[Date "2024.02.13"]
[Round "7"]
[White "agvega14"]
[Black "hristos03"]
[Result "0-1"]
[WhiteElo "2187"]
[BlackElo "2358"]
[TimeControl "180+1"]
[EndTime "15:17:52 PST"]
[Termination "hristos03 won on time"]

1. e4 {[%clk 0:03:00.9]} 1... c5 {[%clk 0:02:59.6]} 2. Nf3 {[%clk 0:02:56.6]}
2... e6 {[%clk 0:02:59.9]} 3. c3 {[%clk 0:02:52.9]} 3... d5 {[%clk 0:02:59.9]}
4. exd5 {[%clk 0:02:49.9]} 4... exd5 {[%clk 0:03:00.8]} 5. d4 {[%clk 0:02:50.6]}
5... Nf6 {[%clk 0:03:00.1]} 6. Bd3 {[%clk 0:02:50.2]} 6... Nc6 {[%clk
0:02:57.9]} 7. h3 {[%clk 0:02:50]} 7... Bd6 {[%clk 0:02:54.7]} 8. O-O {[%clk
0:02:49.8]} 8... O-O {[%clk 0:02:54.7]} 9. Bg5 {[%clk 0:02:48.8]} 9... h6 {[%clk
0:02:52]} 10. Be3 {[%clk 0:02:44.5]} 10... c4 {[%clk 0:02:41.9]} 11. Bc2 {[%clk
0:02:43]} 11... b5 {[%clk 0:02:34.9]} 12. Nbd2 {[%clk 0:02:40.1]} 12... a5
{[%clk 0:02:33.1]} 13. b3 {[%clk 0:02:26.3]} 13... Ba6 {[%clk 0:02:20.2]} 14.
Re1 {[%clk 0:02:22]} 14... b4 {[%clk 0:02:19.7]} 15. cxb4 {[%clk 0:02:11.7]}
15... axb4 {[%clk 0:02:16.7]} 16. a4 {[%clk 0:02:06.9]} 16... c3 {[%clk
0:02:08.5]} 17. Nf1 {[%clk 0:02:03]} 17... Re8 {[%clk 0:02:03.6]} 18. N1h2
{[%clk 0:01:48.2]} 18... Ne4 {[%clk 0:01:59.3]} 19. Ng4 {[%clk 0:01:28.1]} 19...
h5 {[%clk 0:01:08.9]} 20. Ngh2 {[%clk 0:01:24.5]} 20... Qf6 {[%clk 0:01:02.8]}
21. h4 {[%clk 0:01:07.8]} 21... g6 {[%clk 0:00:48.4]} 22. Ng5 {[%clk 0:00:59.3]}
22... Bxh2+ {[%clk 0:00:39.3]} 23. Kxh2 {[%clk 0:00:54.3]} 23... Nxf2 {[%clk
0:00:39.6]} 24. Bxf2 {[%clk 0:00:38.1]} 24... Qxf2 {[%clk 0:00:40.5]} 25. Nf3
{[%clk 0:00:23.1]} 25... Rxe1 {[%clk 0:00:39.8]} 26. Nxe1 {[%clk 0:00:18.1]}
26... Qxh4+ {[%clk 0:00:35]} 27. Kg1 {[%clk 0:00:18.7]} 27... Qxd4+ {[%clk
0:00:31.4]} 28. Kh2 {[%clk 0:00:18.3]} 28... Re8 {[%clk 0:00:19.3]} 29. Nf3
{[%clk 0:00:16.5]} 29... Qf4+ {[%clk 0:00:19.4]} 30. Kg1 {[%clk 0:00:15.2]}
30... Qe3+ {[%clk 0:00:19.5]} 31. Kh2 {[%clk 0:00:14.5]} 31... d4 {[%clk
0:00:20.1]} 32. Nxd4 {[%clk 0:00:04.5]} 32... Qf4+ {[%clk 0:00:16.8]} 33. Kh1
{[%clk 0:00:03.8]} 33... Qh4+ {[%clk 0:00:16.4]} 34. Kg1 {[%clk 0:00:03.2]}
34... Qxd4+ {[%clk 0:00:17]} 35. Kh2 {[%clk 0:00:03.9]} 35... Qf4+ {[%clk
0:00:15.4]} 36. Kh1 {[%clk 0:00:03.8]} 36... Ne5 {[%clk 0:00:15.4]} 0-1